fUST/lending_fUST_20250531
["ID","MTS","AMOUNT","RATE_DAILY","PERIOD"]
[363238394,1748638241977,-564.55318616,0.00016711,2]
[363238396,1748638241987,-430.0,0.00016712,2]
[363238398,1748638241996,-430.0,0.00016712,2]
[363238400,1748638242005,-430.0,0.00016712,2]
[363238402,1748638242015,-430.0,0.00016712,2]
[363238404,1748638242024,-430.0,0.00016712,2]
[363238406,1748638242034,-430.0,0.00016712,2]
[363238408,1748638242043,-430.0,0.00016712,2]
[363238410,1748638242052,-430.0,0.00016712,2]
[363238412,1748638242061,-1069.46,0.00016712,2]
[363238414,1748638242070,-430.0,0.00016712,2]
[363238416,1748638242080,-430.0,0.00016712,2]
[363238418,1748638242089,-430.0,0.00016712,2]
[363238420,1748638242098,-907.51,0.00016712,2]
[363238422,1748638242107,-2026.64,0.00016712,2]
[363238424,1748638242117,-430.0,0.00016712,2]
[363238426,1748638242126,-563.25,0.00016712,2]
[363238428,1748638242136,-430.0,0.00016712,2]
[363238430,1748638242146,-430.0,0.00016712,2]
[363238432,1748638242155,-430.0,0.00016712,2]
[363238434,1748638242164,-430.0,0.00016712,2]
[363238436,1748638242173,-430.0,0.00016712,2]
[363238438,1748638242183,-2791.01,0.00016712,2]
[363238440,1748638242192,-430.0,0.00016712,2]
[363238442,1748638242201,-840.28,0.00016712,2]
[363238444,1748638242210,-453.67,0.00016712,2]
[363238446,1748638242219,-430.0,0.00016712,2]
[363238448,1748638242228,-430.0,0.00016712,2]
[363238450,1748638242237,-432.72,0.00016712,2]
[363238452,1748638242247,-519.87,0.00016712,2]
[363238454,1748638242255,-630.22,0.00016712,2]
[363238456,1748638242264,-799.27,0.00016712,2]
[363238458,1748638242273,-430.0,0.00016712,2]
[363238460,1748638242282,-2257.3,0.00016712,2]
[363238462,1748638242292,-2030.97,0.00016712,2]
[363238464,1748638242301,-430.0,0.00016712,2]
[363238466,1748638242310,-510.14,0.00016712,2]
[363238468,1748638242319,-3239.69,0.00016712,2]
[363238470,1748638242330,-2215.48,0.00016712,2]
[363238472,1748638242339,-430.0,0.00016712,2]
[363238474,1748638242348,-466.31,0.00016712,2]
[363238476,1748638242357,-518.01,0.00016712,2]
[363238478,1748638242367,-622.82,0.00016712,2]
[363238480,1748638242376,-430.0,0.00016712,2]
[363238482,1748638242385,-430.0,0.00016712,2]
[363238484,1748638242394,-430.0,0.00016712,2]
[363238486,1748638242404,-430.0,0.00016712,2]
[363238488,1748638242413,-430.0,0.00016712,2]
[363238490,1748638242422,-430.0,0.00016712,2]
[363238492,1748638242431,-430.0,0.00016712,2]
[363238494,1748638242441,-430.0,0.00016712,2]
[363238496,1748638242450,-636.56,0.00016712,2]
[363238498,1748638242459,-781.28,0.00016712,2]
[363238500,1748638242469,-430.0,0.00016712,2]
[363238502,1748638242479,-430.0,0.00016712,2]
[363238504,1748638242489,-1403.37,0.00016712,2]
[363238506,1748638242498,-430.0,0.00016712,2]
[363238508,1748638242507,-160.98,0.00016712,2]
[363238510,1748638242517,-430.0,0.00016712,2]
[363238512,1748638242526,-430.0,0.00016712,2]
[363238514,1748638242535,-430.0,0.00016712,2]
[363238516,1748638242544,-430.0,0.00016712,2]
[363238518,1748638242553,-1284.55,0.00016712,2]
[363238520,1748638242563,-1111.19,0.00016712,2]
[363238521,1748638242572,-1294.99,0.00016712,2]
[363238522,1748638242584,-1020.07,0.00016712,2]
[363238523,1748638242594,-430.0,0.00016712,2]
[363238524,1748638242603,-430.0,0.00016712,2]
[363238525,1748638242612,-430.0,0.00016712,2]
[363238526,1748638242623,-640.95,0.00016712,2]
[363238527,1748638242632,-430.0,0.00016712,2]
[363238528,1748638242641,-430.0,0.00016712,2]
[363238529,1748638242650,-430.0,0.00016712,2]
[363238530,1748638242661,-430.0,0.00016712,2]
[363238531,1748638242670,-430.0,0.00016712,2]
[363238532,1748638242679,-430.0,0.00016712,2]
[363238533,1748638242688,-430.0,0.00016712,2]
[363238534,1748638242698,-430.0,0.00016712,2]
[363238535,1748638242707,-1937.74,0.00016712,2]
[363238536,1748638242718,-1672.28,0.00016712,2]
[363238537,1748638242727,-430.0,0.00016712,2]
[363238538,1748638242737,-1171.51,0.00016712,2]
[363238539,1748638242746,-188.8045275,0.00016712,2]
[363238540,1748638242756,-309.6720931,0.00016712,2]
[363238541,1748638242765,-163.6176472,0.00016712,2]
[363238542,1748638242775,-306.0,0.00016712,2]
[363238543,1748638242784,-160.0,0.00016765,2]
[363238545,1748638242793,-3396.40602857,0.00016818,2]
[363238561,1748638242937,-3125.0,0.00016905,2]
[363238563,1748638242947,-3125.0,0.00016984,2]
[363238565,1748638242957,-3125.0,0.00016984,2]
[363238567,1748638242967,-3125.0,0.00016984,2]
[363238569,1748638242976,-3125.0,0.00016984,2]
[363238571,1748638242985,-3125.05,0.00016984,2]
[363238573,1748638242994,-430.0,0.00016986,2]
[363238575,1748638243004,-430.0,0.00016986,2]
[363238578,1748638243014,-257.08318413,0.00016986,2]
[363238580,1748638243023,-430.0,0.00016986,2]
[363238581,1748638243033,-430.0,0.00016986,2]
[363238583,1748638243042,-430.0,0.00016986,2]
[363238586,1748638243051,-1069.46,0.00016986,2]
[363238588,1748638243060,-430.0,0.00016986,2]
[363238591,1748638243070,-430.0,0.00016986,2]
[363238593,1748638243080,-907.51,0.00016986,2]
[363238595,1748638243089,-2026.64,0.00016986,2]
[363238597,1748638243098,-430.0,0.00016986,2]
[363238599,1748638243108,-563.25,0.00016986,2]
[363238601,1748638243118,-430.0,0.00016986,2]
[363238603,1748638243127,-430.0,0.00016986,2]
[363238605,1748638243137,-430.0,0.00016986,2]
[363238608,1748638243146,-430.0,0.00016986,2]
[363238610,1748638243156,-430.0,0.00016986,2]
[363238613,1748638243165,-2791.01,0.00016986,2]
[363238615,1748638243174,-430.0,0.00016986,2]
[363238617,1748638243184,-840.28,0.00016986,2]
[363238619,1748638243194,-453.67,0.00016986,2]
[363238621,1748638243202,-430.0,0.00016986,2]
[363238624,1748638243212,-430.0,0.00016986,2]
[363238627,1748638243221,-432.72,0.00016986,2]
[363238631,1748638243229,-519.87,0.00016986,2]
[363238635,1748638243240,-630.22,0.00016986,2]
[363238639,1748638243250,-799.27,0.00016986,2]
[363238641,1748638243260,-430.0,0.00016986,2]
[363238642,1748638243269,-2257.3,0.00016986,2]
[363238644,1748638243278,-2030.97,0.00016986,2]
[363238646,1748638243287,-430.0,0.00016986,2]
[363238648,1748638243297,-510.14,0.00016986,2]
[363238650,1748638243306,-3239.69,0.00016986,2]
[363238652,1748638243315,-2215.48,0.00016986,2]
[363238654,1748638243325,-430.0,0.00016986,2]
[363238657,1748638243335,-466.31,0.00016986,2]
[363238658,1748638243347,-518.01,0.00016986,2]
[363238660,1748638243356,-622.82,0.00016986,2]
[363238662,1748638243366,-430.0,0.00016986,2]
[363238665,1748638243375,-430.0,0.00016986,2]
[363238667,1748638243385,-430.0,0.00016986,2]
[363238669,1748638243395,-430.0,0.00016986,2]
[363238671,1748638243406,-430.0,0.00016986,2]
[363238673,1748638243416,-430.0,0.00016986,2]
[363238674,1748638243425,-636.56,0.00016986,2]
[363238677,1748638243435,-781.28,0.00016986,2]
[363238678,1748638243444,-430.0,0.00016986,2]
[363238680,1748638243454,-430.0,0.00016986,2]
[363238681,1748638243464,-1403.37,0.00016986,2]
[363238682,1748638243473,-576.8,0.00016986,2]
[363238683,1748638243483,-430.0,0.00016986,2]
[363238684,1748638243492,-430.0,0.00016986,2]
[363238685,1748638243502,-430.0,0.00016986,2]
[363238686,1748638243511,-430.0,0.00016986,2]
[363238687,1748638243521,-1284.55,0.00016986,2]
[363238688,1748638243531,-1111.19,0.00016986,2]
[363238689,1748638243540,-1294.99,0.00016986,2]
[363238690,1748638243550,-1020.07,0.00016986,2]
[363238691,1748638243559,-430.0,0.00016986,2]
[363238692,1748638243568,-430.0,0.00016986,2]
[363238693,1748638243580,-430.0,0.00016986,2]
[363238694,1748638243590,-640.95,0.00016986,2]
[363238695,1748638243599,-430.0,0.00016986,2]
[363238696,1748638243609,-430.0,0.00016986,2]
[363238697,1748638243619,-430.0,0.00016986,2]
[363238698,1748638243628,-430.0,0.00016986,2]
[363238699,1748638243637,-430.0,0.00016986,2]
[363238700,1748638243647,-430.0,0.00016986,2]
[363238701,1748638243656,-1937.74,0.00016986,2]
[363238702,1748638243667,-1672.28,0.00016986,2]
[363238703,1748638243676,-430.0,0.00016986,2]
[363238704,1748638243686,-1171.51,0.00016986,2]
[363238705,1748638243695,-500.0,0.00017209,2]
[363238706,1748638243705,-500.0,0.00017209,2]
[363238707,1748638243715,-430.0,0.0001726,2]
[363238708,1748638243725,-430.0,0.0001726,2]
[363238709,1748638243735,-430.0,0.0001726,2]
[363238710,1748638243746,-430.0,0.0001726,2]
[363238711,1748638243756,-430.0,0.0001726,2]
[363238712,1748638243766,-1069.46,0.0001726,2]
[363238713,1748638243775,-442.38,0.0001726,2]
[363238714,1748638243785,-430.0,0.0001726,2]
[363238715,1748638243796,-907.51,0.0001726,2]
[363238716,1748638243805,-2026.64,0.0001726,2]
[363238717,1748638243814,-430.0,0.0001726,2]
[363238718,1748638243824,-563.25,0.0001726,2]
[363238719,1748638243833,-430.0,0.0001726,2]
[363238720,1748638243843,-430.0,0.0001726,2]
[363238721,1748638243853,-430.0,0.0001726,2]
[363238722,1748638243863,-430.0,0.0001726,2]
[363238723,1748638243872,-430.0,0.0001726,2]
[363238724,1748638243882,-2791.01,0.0001726,2]
[363238725,1748638243892,-430.0,0.0001726,2]
[363238726,1748638243902,-840.28,0.0001726,2]
[363238727,1748638243911,-453.67,0.0001726,2]
[363238728,1748638243921,-430.0,0.0001726,2]
[363238729,1748638243930,-430.0,0.0001726,2]
[363238730,1748638243940,-432.72,0.0001726,2]
[363238731,1748638243949,-519.87,0.0001726,2]
[363238732,1748638243959,-630.22,0.0001726,2]
[363238733,1748638243973,-799.27,0.0001726,2]
[363238734,1748638243982,-430.0,0.0001726,2]
[363238735,1748638243992,-2257.3,0.0001726,2]
[363238736,1748638244002,-2030.97,0.0001726,2]
[363238737,1748638244012,-430.0,0.0001726,2]
[363238738,1748638244021,-510.14,0.0001726,2]
[363238739,1748638244031,-3239.69,0.0001726,2]
[363238740,1748638244041,-2215.48,0.0001726,2]
[363238741,1748638244050,-466.31,0.0001726,2]
[363238742,1748638244060,-518.01,0.0001726,2]
[363238743,1748638244070,-622.82,0.0001726,2]
[363238744,1748638244079,-430.0,0.0001726,2]
[363238745,1748638244089,-478.96,0.0001726,2]
[363238746,1748638244098,-430.0,0.0001726,2]
[363238747,1748638244108,-171.0,0.0001726,2]
[363238748,1748638244117,-430.0,0.0001726,2]
[363238749,1748638244126,-636.56,0.0001726,2]
[363238750,1748638244136,-781.28,0.0001726,2]
[363238751,1748638244145,-430.0,0.0001726,2]
[363238752,1748638244154,-430.0,0.0001726,2]
[363238753,1748638244163,-1403.37,0.0001726,2]
[363238754,1748638244173,-430.0,0.0001726,2]
[363238755,1748638244182,-1284.55,0.0001726,2]
[363238756,1748638244192,-1111.19,0.0001726,2]
[363238757,1748638244202,-1294.99,0.0001726,2]
[363238758,1748638244213,-1020.07,0.0001726,2]
[363238759,1748638244223,-430.0,0.0001726,2]
[363238760,1748638244232,-430.0,0.0001726,2]
[363238761,1748638244242,-430.0,0.0001726,2]
[363238762,1748638244251,-640.95,0.0001726,2]
[363238763,1748638244261,-430.0,0.0001726,2]
[363238764,1748638244270,-430.0,0.0001726,2]
[363238765,1748638244279,-430.0,0.0001726,2]
[363238766,1748638244288,-430.0,0.0001726,2]
[363238767,1748638244297,-430.0,0.0001726,2]
[363238768,1748638244306,-308.38,0.0001726,2]
[363238769,1748638244316,-1937.74,0.0001726,2]
[363238770,1748638244325,-1672.28,0.0001726,2]
[363238771,1748638244335,-430.0,0.0001726,2]
[363238772,1748638244346,-1171.51,0.0001726,2]
[363238773,1748638244356,-3396.40602857,0.00017297,2]
[363238774,1748638244366,-6860.84613747,0.000173,2]
[363238775,1748638244375,-6860.84613718,0.000173,2]
[363238776,1748638244386,-6860.84613718,0.000173,2]
[363238777,1748638244395,-6860.84613718,0.000173,2]
[363238778,1748638244404,-6860.84613718,0.000173,2]
[363238779,1748638244414,-374.54273059,0.00017304,2]
[363238780,1748638244423,-638.20879264,0.00017324,2]
[363238781,1748638244433,-500.0,0.00017324,2]
[363238782,1748638244442,-500.0,0.00017333,2]
[363238783,1748638244454,-500.0,0.00017335,2]
[363238784,1748638244466,-476.9834559,0.00017335,2]
[363238785,1748638244475,-500.0,0.00017335,2]
[363238786,1748638244485,-2800.0,0.00017391,2]
[363238787,1748638244494,-181.9,0.00017452,2]
[363238788,1748638244504,-6860.84613718,0.00017452,2]
[363238789,1748638244514,-154.2938119,0.00017479,2]
[363238790,1748638244523,-352.829388,0.00017479,2]
[363238791,1748638244532,-314.81381568,0.00017481,2]
[363238792,1748638244542,-160.0,0.00017482,2]
[363238793,1748638244552,-160.0,0.00017482,2]
[363238794,1748638244561,-160.0,0.00017482,2]
[363238795,1748638244570,-160.0,0.00017482,2]
[363238796,1748638244584,-212.7380601,0.00017482,2]
[363238797,1748638244594,-160.0,0.00017482,2]
[363238798,1748638244603,-160.0,0.00017482,2]
[363238799,1748638244612,-160.0,0.00017482,2]
[363238800,1748638244622,-842.5625,0.00017482,2]
[363238801,1748638244632,-160.0,0.00017482,2]
[363238802,1748638244641,-423.39538199,0.00017482,2]
[363238803,1748638244650,-12663.11115519,0.00017482,2]
[363238804,1748638244660,-229.30959854,0.00017482,2]
[363238805,1748638244670,-1144.3770804,0.00017507,2]
[363238806,1748638244680,-608.472011,0.00017533,2]
[363238807,1748638244689,-608.472011,0.00017533,2]
[363238808,1748638244698,-151.0,0.00017533,2]
[363238809,1748638244708,-432.280599,0.00017534,2]
[363238810,1748638244718,-432.280599,0.00017534,2]
[363238811,1748638244727,-151.0,0.00017534,2]
[363238812,1748638244736,-151.0,0.00017534,2]
[363238813,1748638244745,-276.720658,0.00017534,2]
[363238814,1748638244754,-276.720658,0.00017534,2]
[363238815,1748638244764,-2211.015349,0.00017534,2]
[363238816,1748638244773,-2211.015349,0.00017534,2]
[363238817,1748638244783,-430.0,0.00017534,2]
[363238818,1748638244792,-430.0,0.00017534,2]
[363238819,1748638244802,-430.0,0.00017534,2]
[363238820,1748638244812,-430.0,0.00017534,2]
[363238821,1748638244822,-151.0,0.00017534,2]
[363238822,1748638244831,-1069.46,0.00017534,2]
[363238823,1748638244841,-430.0,0.00017534,2]
[363238824,1748638244850,-151.0,0.00017534,2]
[363238825,1748638244859,-907.51,0.00017534,2]
[363238826,1748638244868,-151.0,0.00017534,2]
[363238827,1748638244877,-2026.64,0.00017534,2]
[363238828,1748638244887,-430.0,0.00017534,2]
[363238829,1748638244897,-563.25,0.00017534,2]
[363238831,1748638244906,-430.0,0.00017534,2]
[363238832,1748638244915,-430.0,0.00017534,2]
[363238833,1748638244924,-215.24,0.00017534,2]
[363238834,1748638244934,-497.0,0.00017534,2]
[363238835,1748638244944,-430.0,0.00017534,2]
[363238836,1748638244953,-2791.01,0.00017534,2]
[363238837,1748638244962,-430.0,0.00017534,2]
[363238838,1748638244972,-840.28,0.00017534,2]
[363238839,1748638244982,-453.67,0.00017534,2]
[363238840,1748638244991,-430.0,0.00017534,2]
[363238841,1748638245000,-430.0,0.00017534,2]
[363238842,1748638245009,-432.72,0.00017534,2]
[363238843,1748638245018,-519.87,0.00017534,2]
[363238844,1748638245028,-151.0,0.00017534,2]
[363238845,1748638245037,-630.22,0.00017534,2]
[363238846,1748638245046,-799.27,0.00017534,2]
[363238847,1748638245055,-552.31,0.00017534,2]
[363238848,1748638245064,-2030.97,0.00017534,2]
[363238849,1748638245073,-2257.3,0.00017534,2]
[363238850,1748638245082,-430.0,0.00017534,2]
[363238851,1748638245091,-510.14,0.00017534,2]
[363238852,1748638245100,-3239.69,0.00017534,2]
[363238853,1748638245110,-2215.48,0.00017534,2]
[363238854,1748638245119,-466.31,0.00017534,2]
[363238855,1748638245128,-518.01,0.00017534,2]
[363238856,1748638245138,-622.82,0.00017534,2]
[363238857,1748638245148,-430.0,0.00017534,2]
[363238858,1748638245158,-430.0,0.00017534,2]
[363238859,1748638245168,-636.56,0.00017534,2]
[363238860,1748638245178,-781.28,0.00017534,2]
[363238861,1748638245187,-151.0,0.00017534,2]
[363238862,1748638245197,-1205.537788,0.00017534,2]
[363238863,1748638245206,-430.0,0.00017534,2]
[363238864,1748638245216,-1205.537788,0.00017534,2]
[363238865,1748638245225,-1403.37,0.00017534,2]
[363238866,1748638245235,-430.0,0.00017534,2]
[363238867,1748638245244,-1284.55,0.00017534,2]
[363238868,1748638245253,-1111.19,0.00017534,2]
[363238869,1748638245262,-1294.99,0.00017534,2]
[363238870,1748638245272,-1020.07,0.00017534,2]
[363238871,1748638245281,-430.0,0.00017534,2]
[363238872,1748638245290,-151.0,0.00017534,2]
[363238873,1748638245300,-430.0,0.00017534,2]
[363238874,1748638245310,-226.42216501,0.00017534,2]
[363238875,1748638245319,-640.95,0.00017534,2]
[363238876,1748638245329,-430.0,0.00017534,2]
[363238877,1748638245339,-430.0,0.00017534,2]
[363238878,1748638245348,-460.85,0.00017534,2]
[363238879,1748638245359,-430.0,0.00017534,2]
[363238880,1748638245369,-1937.74,0.00017534,2]
[363238881,1748638245378,-1672.28,0.00017534,2]
[363238882,1748638245387,-151.0,0.00017534,2]
[363238883,1748638245397,-430.0,0.00017534,2]
[363238884,1748638245406,-1171.51,0.00017534,2]
[363238885,1748638245416,-151.0,0.00017534,2]
[363238886,1748638245425,-378.41083,0.00017534,2]
[363238887,1748638245436,-378.41083,0.00017534,2]
[363238888,1748638245446,-500.0,0.0001756,2]
[363238889,1748638245455,-500.0,0.0001756,2]
[363238890,1748638245464,-151.0,0.0001756,2]
[363238891,1748638245473,-151.0,0.0001756,2]
[363238892,1748638245482,-151.0,0.0001756,2]
[363238893,1748638245491,-500.0,0.00017594,2]
[363238894,1748638245501,-151.0,0.0001761,2]
[363238895,1748638245511,-2444.844443,0.0001761,2]
[363238896,1748638245520,-2444.844443,0.0001761,2]
[363238897,1748638245531,-151.0,0.0001761,2]
[363238898,1748638245541,-295.792136,0.0001761,2]
[363238899,1748638245550,-295.792136,0.0001761,2]
[363238900,1748638245560,-939.921018,0.0001761,2]
[363238901,1748638245570,-939.921018,0.0001761,2]
[363238902,1748638245581,-151.0,0.0001761,2]
[363238903,1748638245591,-151.360701,0.0001761,2]
[363238904,1748638245600,-164.695509,0.0001761,2]
[363238905,1748638245609,-151.0,0.000177,2]
[363238906,1748638245619,-604.00335154,0.00017713,2]
[363238907,1748638245628,-151.0,0.00017746,2]
[363238908,1748638245637,-151.0,0.00017746,2]
[363238909,1748638245648,-194.08542105,0.00017746,2]
[363238910,1748638245659,-200.59691172,0.00017746,2]
[363238911,1748638245676,-300.0,0.00017746,2]
[363238912,1748638245692,-300.0,0.00017746,2]
[363238913,1748638245702,-300.0,0.00017746,2]
[363238914,1748638245711,-300.0,0.00017746,2]
[363238915,1748638245721,-207.4,0.00017746,2]
[363238916,1748638245729,-300.0,0.00017746,2]
[363238917,1748638245739,-300.0,0.00017746,2]
[363238918,1748638245748,-5000.0,0.00017746,2]
[363238919,1748638245757,-300.0,0.00017746,2]
[363238920,1748638245767,-300.0,0.00017746,2]
[363238921,1748638245776,-300.0,0.00017746,2]
[363238922,1748638245785,-300.0,0.00017746,2]
[363238923,1748638245795,-300.0,0.00017746,2]
[363238924,1748638245804,-300.0,0.00017746,2]
[363238925,1748638245813,-300.0,0.00017746,2]
[363238926,1748638245822,-300.0,0.00017746,2]
[363238927,1748638245832,-300.0,0.00017746,2]
[363238928,1748638245842,-500.0,0.00017757,2]
[363238929,1748638245851,-1018.43483232,0.00017757,2]
[363238930,1748638245860,-254.544609,0.00017762,2]
[363238931,1748638245870,-254.544609,0.00017762,2]
[363238932,1748638245879,-6860.84613718,0.00017762,2]
[363238933,1748638245889,-3396.40602857,0.00017777,2]
[363238934,1748638245899,-493.727084,0.00017808,2]
[363238935,1748638245908,-493.727084,0.00017808,2]
[363238936,1748638245918,-430.0,0.00017808,2]
[363238937,1748638245927,-430.0,0.00017808,2]
[363238938,1748638245937,-213.683142,0.00017808,2]
[363238939,1748638245948,-213.683142,0.00017808,2]
[363238940,1748638245957,-430.0,0.00017808,2]
[363238941,1748638245967,-430.0,0.00017808,2]
[363238942,1748638245978,-1069.46,0.00017808,2]
[363238943,1748638245992,-430.0,0.00017808,2]
[363238944,1748638246004,-907.51,0.00017808,2]
[363238945,1748638246015,-2026.64,0.00017808,2]
[363238946,1748638246025,-236.58,0.00017808,2]
[363238947,1748638246035,-563.25,0.00017808,2]
[363238948,1748638246045,-430.0,0.00017808,2]
[363238949,1748638246055,-430.0,0.00017808,2]
[363238950,1748638246065,-430.0,0.00017808,2]
[363238951,1748638246075,-2791.01,0.00017808,2]
[363238955,1748638246204,-430.0,0.00017808,2]
[363238956,1748638246215,-840.28,0.00017808,2]
[363238957,1748638246225,-453.67,0.00017808,2]
[363238958,1748638246235,-443.73,0.00017808,2]
[363238959,1748638246244,-430.0,0.00017808,2]
[363238960,1748638246253,-432.72,0.00017808,2]
[363238961,1748638246263,-519.87,0.00017808,2]
[363238962,1748638246272,-630.22,0.00017808,2]
[363238963,1748638246281,-799.27,0.00017808,2]
[363238964,1748638246290,-2030.97,0.00017808,2]
[363238965,1748638246299,-2257.3,0.00017808,2]
[363238966,1748638246308,-430.0,0.00017808,2]
[363238967,1748638246316,-510.14,0.00017808,2]
[363238968,1748638246326,-3239.69,0.00017808,2]
[363238969,1748638246335,-2215.48,0.00017808,2]
[363238970,1748638246344,-466.31,0.00017808,2]
[363238971,1748638246354,-518.01,0.00017808,2]
[363238972,1748638246363,-622.82,0.00017808,2]
[363238973,1748638246372,-430.0,0.00017808,2]
[363238974,1748638246382,-430.0,0.00017808,2]
[363238976,1748638246391,-636.56,0.00017808,2]
[363238977,1748638246401,-781.28,0.00017808,2]
[363238978,1748638246410,-1403.37,0.00017808,2]
[363238979,1748638246419,-570.77,0.00017808,2]
[363238980,1748638246428,-1284.55,0.00017808,2]
[363238981,1748638246437,-1111.19,0.00017808,2]
[363238982,1748638246446,-1294.99,0.00017808,2]
[363238983,1748638246455,-1020.07,0.00017808,2]
[363238984,1748638246464,-430.0,0.00017808,2]
[363238985,1748638246473,-430.0,0.00017808,2]
[363238986,1748638246482,-640.95,0.00017808,2]
[363238987,1748638246491,-430.0,0.00017808,2]
[363238988,1748638246500,-430.0,0.00017808,2]
[363238989,1748638246510,-430.0,0.00017808,2]
[363238990,1748638246519,-1937.74,0.00017808,2]
[363238991,1748638246531,-1672.28,0.00017808,2]
[363238992,1748638246540,-430.0,0.00017808,2]
[363238993,1748638246549,-1171.51,0.00017808,2]
[363238994,1748638246558,-151.0,0.00017827,2]
[363238995,1748638246568,-151.0,0.00017827,2]
[363238996,1748638246579,-1007.66408941,0.00017871,2]
[363238997,1748638246589,-500.0,0.00017881,2]
[363238998,1748638246598,-1000.0,0.00017883,2]
[363238999,1748638246607,-1000.0,0.00017883,2]
[363239000,1748638246617,-2981.03403435,0.000179,2]
[363239001,1748638246627,-200.0,0.000179,10]
[363239002,1748638246636,-331.530931,0.000179,10]
[363239003,1748638246645,-4570.0,0.000179,2]
[363239004,1748638246655,-151.0,0.000179,2]
[363239005,1748638246664,-1205.537788,0.000179,2]
[363239006,1748638246673,-1205.537788,0.000179,2]
[363239008,1748638246682,-151.0,0.000179,2]
[363239010,1748638246692,-587.0,0.00017965,2]
[363239012,1748638246701,-587.0,0.00017965,2]
[363239014,1748638246710,-8767.55859289,0.00018,2]
[363239016,1748638246719,-432.280599,0.00018,2]
[363239018,1748638246729,-432.280599,0.00018,2]
[363239020,1748638246738,-608.472011,0.00018,2]
[363239022,1748638246747,-608.472011,0.00018,2]
[363239024,1748638246756,-151.0,0.00018,2]
[363239025,1748638246765,-151.0,0.00018,2]
[363239027,1748638246774,-151.0,0.00018,2]
[363239029,1748638246783,-276.720658,0.00018,2]
[363239031,1748638246794,-276.720658,0.00018,2]
[363239033,1748638246803,-2211.015349,0.00018,2]
[363239035,1748638246813,-2211.015349,0.00018,2]
[363239037,1748638246822,-162.56,0.00018,2]
[363239039,1748638246831,-155.07848048,0.00018,2]
[363239041,1748638246840,-151.0,0.00018,2]
[363239043,1748638246849,-151.0,0.00018,2]
[363239045,1748638246858,-151.0,0.00018,2]
[363239047,1748638246867,-151.0,0.00018,2]
[363239049,1748638246877,-151.0,0.00018,2]
[363239052,1748638246886,-733.41055328,0.00018,2]
[363239054,1748638246895,-378.41083,0.00018,2]
[363239055,1748638246904,-378.41083,0.00018,2]
[363239057,1748638246913,-6860.84613718,0.00018072,2]
[363239059,1748638246923,-6951.6689753,0.00018077,2]
[363239062,1748638246932,-151.0,0.00018081,2]
[363239063,1748638246941,-151.0,0.00018081,2]
[363239065,1748638246951,-151.0,0.00018081,2]
[363239067,1748638246960,-164.24234,0.00018081,2]
[363239069,1748638246969,-151.0,0.00018082,2]
[363239071,1748638246978,-254.544609,0.00018082,2]
[363239074,1748638246987,-254.544609,0.00018082,2]
[363239075,1748638246997,-608.472011,0.00018082,2]
[363239077,1748638247006,-608.472011,0.00018082,2]